[Event "75th Argentine Women-ch 2024"]
[Site "Buenos Aires"]
[Date "2024.11.29"]
[Round "8.8"]
[White "Bossero, Ingrid"]
[Black "Manzoni, Camila"]
[Result "1-0"]
[ECO "B15"]
[WhiteElo "1694"]
[BlackElo "1521"]
[Annotator "NA RC"]
[PlyCount "147"]
[EventDate "2024.11.21"]
[EventType "swiss"]
[EventCountry "ARG"]
[SourceTitle "playchess.com"]
[Source "ChessBase"]
[SourceQuality "1"]
[TimeControl "5400+30"]

1. e4 {[%emt 0:00:02]} c6 {[%emt 0:28:32]} 2. d4 {[%emt 0:00:06]} d5 {[%emt 0:00:02]} 3. Nc3 {[%emt 0:00:18]} Nf6 {[%emt 0:00:23]} 4. e5 {[%emt 0:03:56]} Nfd7 {[%emt 0:00:59]} 5. Nf3 {[%emt 0:01:01]} e6 {[%emt 0:01:14]} 6. Bd3 {[%emt 0:01:32]} Be7 {[%emt 0:01:05]} 7. O-O {[%emt 0:00:49]} c5 {[%emt 0:01:24]} 8. dxc5 {[%emt 0:05:04]} Bxc5 {[%emt 0:00:45]} 9. Qe2 {[%emt 0:11:35]} Nc6 {[%emt 0:05:25]} 10. Bf4 {[%emt 0:04:05]} Nb4 {[%emt 0:02:28]} 11. Bb5 {[%emt 0:05:45]} a6 {[%emt 0:01:21]} 12. Ba4 {[%emt 0:01:02]} b5 {[%emt 0:00:29]} 13. Bb3 {[%emt 0:00:04]} Be7 {[%emt 0:00:25]} 14. a3 {[%emt 0:03:16]} Nc6 {[%emt 0:01:29]} 15. Rad1 {[%emt 0:01:40]} Nc5 {[%emt 0:08:19]} 16. Ba2 {[%emt 0:01:19]} b4 {[%emt 0:02:31]} 17. axb4 {[%emt 0:03:41]} Nxb4 {[%emt 0:00:24]} 18. Bb1 {[%emt 0:00:56]} a5 {[%emt 0:01:08]} 19. Rfe1 {[%emt 0:04:39]} Ba6 {[%emt 0:01:48]} 20. Qe3 {[%emt 0:01:06]} Rb8 {[%emt 0:01:38]} 21. Nd4 {[%emt 0:01:38]} Qc7 {[%emt 0:03:01]} 22. Qg3 {[%emt 0:01:08]} g6 {[%emt 0:02:47]} 23. b3 {[%emt 0:04:42]} Ra8 {[%emt 0:02:09]} 24. h4 {[%emt 0:04:22]} h5 {[%emt 0:01:54]} 25. Ncb5 {[%emt 0:11:09]} Bxb5 {[%emt 0:07:17]} 26. Nxb5 {[%emt 0:00:02]} Qb6 {[%emt 0:04:15]} 27. Nd4 {[%emt 0:06:05]} Ne4 {[%emt 0:02:03]} 28. Qf3 {[%emt 0:00:41]} Bxh4 {[%emt 0:01:04]} 29. g3 {[%emt 0:04:37]} Bg5 {[%emt 0:00:49]} 30. Bxg5 {[%emt 0:00:31]} Nxg5 {[%emt 0:00:08]} 31. Qf6 {[%emt 0:00:22]} Nh3+ {[%emt 0:03:02]} 32. Kg2 {[%emt 0:00:54]} Nf4+ {[%emt 0:01:01]} 33. Qxf4 {[%emt 0:00:51]} Rh7 {[%emt 0:01:23]} 34. Qf6 {[%emt 0:05:24]} Kd7 {[%emt 0:01:45]} 35. Nf3 {[%emt 0:01:04]} Rah8 {[%emt 0:03:09]} 36. Ng5 {[%emt 0:00:51]} Qc6 {[%emt 0:02:37]} 37. Nxh7 {[%emt 0:00:53]} Rxh7 {[%emt 0:00:10]} 38. Qf3 {[%emt 0:01:08]} Qa8 {[%emt 0:01:38]} 39. Rd4 {[%emt 0:02:02]} Nc6 {[%emt 0:00:48]} 40. Rf4 {[%emt 0:00:15]} Qf8 {[%emt 0:00:27]} 41. c3 {[%emt 0:00:13]} Qg7 {[%emt 0:00:20]} 42. Qe2 {[%emt 0:01:11]} Qh8 {[%emt 0:01:14]} 43. Qb5 {[%emt 0:00:28]} Kc7 {[%emt 0:00:33]} 44. Qc5 {[%emt 0:01:18]} Kb7 {[%emt 0:00:50]} 45. Qb5+ {[%emt 0:00:40]} Kc7 {[%emt 0:00:08]} 46. b4 {[%emt 0:00:29]} axb4 {[%emt 0:00:50]} 47. cxb4 {[%emt 0:00:18]} Nxe5 {[%emt 0:00:20]} 48. Rc1+ {[%emt 0:00:35]} Kd6 {[%emt 0:00:39]} 49. Qb6+ {[%emt 0:00:48]} Ke7 {[%emt 0:00:31]} 50. Rc7+ {[%emt 0:00:29]} Nd7 {[%emt 0:00:09]} 51. Qc6 {[%emt 0:01:04]} Qd8 {[%emt 0:00:19]} 52. Bd3 {[%emt 0:00:34]} f5 {[%emt 0:01:23]} 53. Bb5 {[%emt 0:01:17]} Kf6 {[%emt 0:00:26]} 54. Qc3+ {[%emt 0:01:38]} e5 {[%emt 0:00:53]} 55. Rh4 {[%emt 0:00:59]} d4 {[%emt 0:01:30]} 56. Qc6+ {[%emt 0:00:32]} Kg5 {[%emt 0:00:22]} 57. Rh1 {[%emt 0:00:22]} f4 {[%emt 0:01:19]} 58. Rxd7 {[%emt 0:03:01]} Rxd7 {[%emt 0:00:15]} 59. Qxd7 {[%emt 0:00:06]} Qa8+ {[%emt 0:00:16]} 60. Bc6 {[%emt 0:00:42]} Qa2 {[%emt 0:00:19]} 61. Qe7+ {[%emt 0:00:24]} Kh6 {[%emt 0:00:29]} 62. Qf8+ {[%emt 0:00:22]} Kg5 {[%emt 0:00:15]} 63. gxf4+ {[%emt 0:00:21]} exf4 {[%emt 0:01:34]} 64. Qc5+ {[%emt 0:00:25]} Kh6 {[%emt 0:00:25]} 65. Qxd4 {[%emt 0:00:09]} Qe6 {[%emt 0:00:26]} 66. Qxf4+ {[%emt 0:00:16]} g5 {[%emt 0:00:06]} 67. Qf8+ {[%emt 0:00:25]} Kg6 {[%emt 0:00:44]} 68. Qf3 {[%emt 0:00:36]} Kg7 {[%emt 0:02:04]} 69. b5 {[%emt 0:00:20]} g4 {[%emt 0:00:27]} 70. Qc3+ {[%emt 0:00:20]} Kg6 {[%emt 0:00:29]} 71. Qc2+ {[%emt 0:00:16]} Kg5 {[%emt 0:00:09]} 72. Qc5+ {[%emt 0:00:18]} Kf4 {[%emt 0:01:02]} 73. Rxh5 {[%emt 0:00:39]} Qf7 {[%emt 0:00:29]} 74. Qd4# {[%emt 0:00:42]} 1-0

[Event "75th Argentine Women-ch 2024"]
[Site "Buenos Aires"]
[Date "2024.11.28"]
[Round "8.9"]
[White "Macuri, Genesis"]
[Black "Montiel Marin, Micaela Agustina"]
[Result "0-1"]
[ECO "A43"]
[WhiteElo "1449"]
[BlackElo "1880"]
[Annotator "NA RC"]
[PlyCount "42"]
[EventDate "2024.11.21"]
[EventType "swiss"]
[EventCountry "ARG"]
[SourceTitle "playchess.com"]
[Source "ChessBase"]
[SourceQuality "1"]
[TimeControl "5400+30"]

1. d4 {[%emt 1:31:00]} Nf6 {[%emt 0:05:04]} 2. Nf3 {[%emt 0:00:00]} c5 {[%emt 0:00:13]} 3. d5 {[%emt 0:00:00]} e6 {[%emt 0:00:19]} 4. dxe6 {[%emt 0:00:00]} fxe6 {[%emt 0:00:09]} 5. g3 {[%emt 0:00:00]} Nc6 {[%emt 0:00:23]} 6. Bg2 {[%emt 0:00:00]} d5 {[%emt 0:00:28]} 7. O-O {[%emt 0:00:00]} Be7 {[%emt 0:00:41]} 8. Nbd2 {[%emt 0:00:00]} O-O {[%emt 0:00:18]} 9. b3 {[%emt 0:00:00]} e5 {[%emt 0:02:50]} 10. Bb2 {[%emt 0:00:00]} e4 {[%emt 0:05:37]} 11. Ne5 {[%emt 0:00:00]} Nxe5 {[%emt 0:00:36]} 12. Bxe5 {[%emt 0:00:00]} Ng4 {[%emt 0:01:13]} 13. Bb2 {[%emt 0:00:00]} Bf6 {[%emt 0:05:47]} (13... Bg5 $17 14. Nxe4 (14. c4 $2 Nxf2 15. Rxf2 Be3 $19) 14... dxe4 15. Qxd8 Rxd8 (15... Bxd8 16. Bxe4 a5 17. Rae1 $17) 16. Bxe4 Bf6 17. Bxf6 Nxf6) 14. Rb1 {[%emt 0:00:00]} Bxb2 {[%emt 0:11:12]} 15. Rxb2 {[%emt 0:00:00]} Nxf2 {[%emt 0:00:27]} 16. Rxf2 {[%emt 0:00:00]} Rxf2 {[%emt 0:00:07]} 17. Kxf2 {[%emt 0:00:00]} Qf6+ {[%emt 0:00:04]} 18. Kg1 {[%emt 0:00:00]} Qxb2 {[%emt 0:00:53]} 19. c4 {[%emt 0:00:00]} Qd4+ {[%emt 0:00:27]} 20. Kh1 {[%emt 0:00:00]} Bg4 {[%emt 0:01:51]} 21. cxd5 {[%emt 0:00:00]} e3 $19 {[%emt 0:02:20]} 0-1

[Event "75th Argentine Women-ch 2024"]
[Site "Buenos Aires"]
[Date "2024.11.28"]
[Round "8.10"]
[White "Perez Mosqueda, Valeria Ritzabeth"]
[Black "Quiroga Ortiz, Isabella"]
[Result "0-1"]
[ECO "D94"]
[WhiteElo "1476"]
[BlackElo "1508"]
[Annotator "NA RC"]
[PlyCount "94"]
[EventDate "2024.11.21"]
[EventType "swiss"]
[EventCountry "ARG"]
[SourceTitle "playchess.com"]
[Source "ChessBase"]
[SourceQuality "1"]
[TimeControl "5400+30"]

1. d4 {[%emt 0:02:27]} Nf6 {[%emt 0:00:11]} 2. Nf3 {[%emt 0:00:06]} g6 {[%emt 0:00:42]} 3. e3 {[%emt 0:00:08]} Bg7 {[%emt 0:00:05]} 4. c4 {[%emt 0:00:10]} d5 {[%emt 0:00:43]} 5. Nc3 {[%emt 0:00:22]} e6 {[%emt 0:00:47]} 6. Be2 {[%emt 0:00:26]} O-O {[%emt 0:01:27]} 7. O-O {[%emt 0:00:25]} Nc6 {[%emt 0:01:04]} 8. Bd2 {[%emt 0:03:42]} b6 {[%emt 0:05:53]} 9. Bd3 {[%emt 0:02:59]} Bb7 {[%emt 0:01:16]} 10. Qc2 {[%emt 0:05:18]} Qe7 {[%emt 0:05:50]} 11. Rfb1 {[%emt 0:02:08]} Nb4 {[%emt 0:01:19]} 12. Qb3 {[%emt 0:02:58]} Nxd3 {[%emt 0:00:37]} 13. Nd1 {[%emt 0:05:09]} dxc4 {[%emt 0:01:49]} 14. Qxc4 {[%emt 0:00:19]} Be4 {[%emt 0:02:19]} 15. Ng5 {[%emt 0:03:56]} Nxf2 {[%emt 0:03:16]} 16. Nxf2 {[%emt 0:00:45]} Bxb1 {[%emt 0:00:09]} 17. Rxb1 {[%emt 0:02:15]} h6 {[%emt 0:04:15]} 18. Nf3 {[%emt 0:00:35]} Qd7 {[%emt 0:03:19]} 19. Ne5 {[%emt 0:02:00]} Qd5 {[%emt 0:05:26]} 20. Qxc7 {[%emt 0:02:55]} Qxa2 {[%emt 0:00:17]} 21. Qc1 {[%emt 0:03:14]} Nd5 {[%emt 0:03:13]} 22. Ra1 {[%emt 0:02:29]} Qb3 {[%emt 0:01:37]} 23. Ra3 {[%emt 0:01:40]} Qb5 {[%emt 0:00:42]} 24. e4 {[%emt 0:08:02]} Rfc8 {[%emt 0:03:42]} 25. Qd1 {[%emt 0:04:09]} Bxe5 {[%emt 0:02:01]} 26. dxe5 {[%emt 0:01:00]} Ne7 {[%emt 0:03:28]} 27. Bxh6 {[%emt 0:03:18]} Qxb2 {[%emt 0:01:41]} 28. Qd6 {[%emt 0:02:17]} Rd8 {[%emt 0:06:00]} 29. Qxe7 {[%emt 0:02:01]} Qb1+ {[%emt 0:00:19]} 30. Nd1 {[%emt 0:00:26]} Rxd1+ {[%emt 0:01:12]} 31. Kf2 {[%emt 0:00:35]} Qc2+ {[%emt 0:00:52]} 32. Kf3 {[%emt 0:00:58]} Rd3+ {[%emt 0:02:51]} 33. Rxd3 {[%emt 0:01:39]} Qxd3+ {[%emt 0:00:10]} 34. Kg4 {[%emt 0:03:47]} Qxe4+ {[%emt 0:00:31]} 35. Kh3 {[%emt 0:01:07]} Qf5+ {[%emt 0:01:49]} 36. g4 {[%emt 0:03:33]} Qf1+ {[%emt 0:03:06]} 37. Kg3 {[%emt 0:00:26]} Qg1+ {[%emt 0:03:38]} 38. Kh3 {[%emt 0:00:41]} Qf1+ {[%emt 0:00:44]} 39. Kg3 {[%emt 0:01:06]} Qe1+ {[%emt 0:00:08]} 40. Kh3 {[%emt 0:00:22]} Qc3+ {[%emt 0:00:39]} 41. Kg2 {[%emt 0:00:22]} Qxe5 {[%emt 0:01:02]} 42. Qb7 {[%emt 0:00:39]} Qd5+ {[%emt 0:00:09]} 43. Qxd5 {[%emt 0:00:17]} exd5 {[%emt 0:00:06]} 44. Kf3 {[%emt 0:00:06]} Re8 {[%emt 0:00:10]} 45. Kf2 {[%emt 0:00:16]} a5 {[%emt 0:00:27]} 46. Be3 {[%emt 0:00:06]} b5 {[%emt 0:00:32]} 47. Ke2 {[%emt 0:01:24]} d4 {[%emt 0:00:07]} 0-1